{"text_format":"3","workbook":"xlsx","n_sheets":4,"sheets":["EVENTI","CALENDARIO","VERSIONE STAMPABILE","AMMINISTRATORE"],"not_rendered":{"defined_names":18},"read":"whole","date_system":"1900"}

{"sheet":"EVENTI","index":0,"n_rows":38,"n_cols":5,"rows_kept":38}
[]
[null,"PIANIFICAZIONE MENSILE"]
[null,"EVENTI COMUNITÀ"]
[]
[]
[]
[]
[null,"DATA","GIORNO","MESE","NOME EVENTO"]
[null,"2016-07-01",{"$f":"IF(ISBLANK(tblEventi[[#This Row],[DATA]]),\"\",UPPER(TEXT(tblEventi[[#This Row],[DATA]],\"ggg\")))","v":"VEN"},{"$f":"IF(ISBLANK(tblEventi[[#This Row],[DATA]]),\"\",UPPER(TEXT(tblEventi[[#This Row],[DATA]],\"mmm\")))","v":"LUG"},"Verde pubblico"]
[null,"2016-07-01",{"$f":"IF(ISBLANK(tblEventi[[#This Row],[DATA]]),\"\",UPPER(TEXT(tblEventi[[#This Row],[DATA]],\"ggg\")))","v":"VEN"},{"$f":"IF(ISBLANK(tblEventi[[#This Row],[DATA]]),\"\",UPPER(TEXT(tblEventi[[#This Row],[DATA]],\"mmm\")))","v":"LUG"},"Consiglio comunale"]
[null,"2016-07-02",{"$f":"IF(ISBLANK(tblEventi[[#This Row],[DATA]]),\"\",UPPER(TEXT(tblEventi[[#This Row],[DATA]],\"ggg\")))","v":"SAB"},{"$f":"IF(ISBLANK(tblEventi[[#This Row],[DATA]]),\"\",UPPER(TEXT(tblEventi[[#This Row],[DATA]],\"mmm\")))","v":"LUG"},"Verde pubblico"]
[null,"2016-07-03",{"$f":"IF(ISBLANK(tblEventi[[#This Row],[DATA]]),\"\",UPPER(TEXT(tblEventi[[#This Row],[DATA]],\"ggg\")))","v":"DOM"},{"$f":"IF(ISBLANK(tblEventi[[#This Row],[DATA]]),\"\",UPPER(TEXT(tblEventi[[#This Row],[DATA]],\"mmm\")))","v":"LUG"},"Serata di cinema al parco"]
[null,"2016-07-08",{"$f":"IF(ISBLANK(tblEventi[[#This Row],[DATA]]),\"\",UPPER(TEXT(tblEventi[[#This Row],[DATA]],\"ggg\")))","v":"VEN"},{"$f":"IF(ISBLANK(tblEventi[[#This Row],[DATA]]),\"\",UPPER(TEXT(tblEventi[[#This Row],[DATA]],\"mmm\")))","v":"LUG"},"Consiglio comunale"]
[null,"2016-07-11",{"$f":"IF(ISBLANK(tblEventi[[#This Row],[DATA]]),\"\",UPPER(TEXT(tblEventi[[#This Row],[DATA]],\"ggg\")))","v":"LUN"},{"$f":"IF(ISBLANK(tblEventi[[#This Row],[DATA]]),\"\",UPPER(TEXT(tblEventi[[#This Row],[DATA]],\"mmm\")))","v":"LUG"},"Pranzo Camera di Commercio"]
[null,"2016-07-12",{"$f":"IF(ISBLANK(tblEventi[[#This Row],[DATA]]),\"\",UPPER(TEXT(tblEventi[[#This Row],[DATA]],\"ggg\")))","v":"MAR"},{"$f":"IF(ISBLANK(tblEventi[[#This Row],[DATA]]),\"\",UPPER(TEXT(tblEventi[[#This Row],[DATA]],\"mmm\")))","v":"LUG"},"Mostra di antiquariato"]
[null,"2016-07-14",{"$f":"IF(ISBLANK(tblEventi[[#This Row],[DATA]]),\"\",UPPER(TEXT(tblEventi[[#This Row],[DATA]],\"ggg\")))","v":"GIO"},{"$f":"IF(ISBLANK(tblEventi[[#This Row],[DATA]]),\"\",UPPER(TEXT(tblEventi[[#This Row],[DATA]],\"mmm\")))","v":"LUG"},"Seminario comunità"]
[null,"2016-07-15",{"$f":"IF(ISBLANK(tblEventi[[#This Row],[DATA]]),\"\",UPPER(TEXT(tblEventi[[#This Row],[DATA]],\"ggg\")))","v":"VEN"},{"$f":"IF(ISBLANK(tblEventi[[#This Row],[DATA]]),\"\",UPPER(TEXT(tblEventi[[#This Row],[DATA]],\"mmm\")))","v":"LUG"},"Consiglio comunale"]
[null,"2016-07-19",{"$f":"IF(ISBLANK(tblEventi[[#This Row],[DATA]]),\"\",UPPER(TEXT(tblEventi[[#This Row],[DATA]],\"ggg\")))","v":"MAR"},{"$f":"IF(ISBLANK(tblEventi[[#This Row],[DATA]]),\"\",UPPER(TEXT(tblEventi[[#This Row],[DATA]],\"mmm\")))","v":"LUG"},"Seminario di pianificazione strategica"]
[null,"2016-07-20",{"$f":"IF(ISBLANK(tblEventi[[#This Row],[DATA]]),\"\",UPPER(TEXT(tblEventi[[#This Row],[DATA]],\"ggg\")))","v":"MER"},{"$f":"IF(ISBLANK(tblEventi[[#This Row],[DATA]]),\"\",UPPER(TEXT(tblEventi[[#This Row],[DATA]],\"mmm\")))","v":"LUG"},"Pulizia parco"]
[null,"2016-07-22",{"$f":"IF(ISBLANK(tblEventi[[#This Row],[DATA]]),\"\",UPPER(TEXT(tblEventi[[#This Row],[DATA]],\"ggg\")))","v":"VEN"},{"$f":"IF(ISBLANK(tblEventi[[#This Row],[DATA]]),\"\",UPPER(TEXT(tblEventi[[#This Row],[DATA]],\"mmm\")))","v":"LUG"},"Consiglio comunale"]
[null,"2016-07-26",{"$f":"IF(ISBLANK(tblEventi[[#This Row],[DATA]]),\"\",UPPER(TEXT(tblEventi[[#This Row],[DATA]],\"ggg\")))","v":"MAR"},{"$f":"IF(ISBLANK(tblEventi[[#This Row],[DATA]]),\"\",UPPER(TEXT(tblEventi[[#This Row],[DATA]],\"mmm\")))","v":"LUG"},"Passeggiata in centro"]
[null,"2016-07-26",{"$f":"IF(ISBLANK(tblEventi[[#This Row],[DATA]]),\"\",UPPER(TEXT(tblEventi[[#This Row],[DATA]],\"ggg\")))","v":"MAR"},{"$f":"IF(ISBLANK(tblEventi[[#This Row],[DATA]]),\"\",UPPER(TEXT(tblEventi[[#This Row],[DATA]],\"mmm\")))","v":"LUG"},"Giro dei bar"]
[null,"2016-07-29",{"$f":"IF(ISBLANK(tblEventi[[#This Row],[DATA]]),\"\",UPPER(TEXT(tblEventi[[#This Row],[DATA]],\"ggg\")))","v":"VEN"},{"$f":"IF(ISBLANK(tblEventi[[#This Row],[DATA]]),\"\",UPPER(TEXT(tblEventi[[#This Row],[DATA]],\"mmm\")))","v":"LUG"},"Consiglio comunale"]
[null,"2016-08-05",{"$f":"IF(ISBLANK(tblEventi[[#This Row],[DATA]]),\"\",UPPER(TEXT(tblEventi[[#This Row],[DATA]],\"ggg\")))","v":"VEN"},{"$f":"IF(ISBLANK(tblEventi[[#This Row],[DATA]]),\"\",UPPER(TEXT(tblEventi[[#This Row],[DATA]],\"mmm\")))","v":"AGO"},"Consiglio comunale"]
[null,"2016-08-10",{"$f":"IF(ISBLANK(tblEventi[[#This Row],[DATA]]),\"\",UPPER(TEXT(tblEventi[[#This Row],[DATA]],\"ggg\")))","v":"MER"},{"$f":"IF(ISBLANK(tblEventi[[#This Row],[DATA]]),\"\",UPPER(TEXT(tblEventi[[#This Row],[DATA]],\"mmm\")))","v":"AGO"},"Pulizia parco"]
[null,"2016-08-12",{"$f":"IF(ISBLANK(tblEventi[[#This Row],[DATA]]),\"\",UPPER(TEXT(tblEventi[[#This Row],[DATA]],\"ggg\")))","v":"VEN"},{"$f":"IF(ISBLANK(tblEventi[[#This Row],[DATA]]),\"\",UPPER(TEXT(tblEventi[[#This Row],[DATA]],\"mmm\")))","v":"AGO"},"Consiglio comunale"]
[null,"2016-08-13",{"$f":"IF(ISBLANK(tblEventi[[#This Row],[DATA]]),\"\",UPPER(TEXT(tblEventi[[#This Row],[DATA]],\"ggg\")))","v":"SAB"},{"$f":"IF(ISBLANK(tblEventi[[#This Row],[DATA]]),\"\",UPPER(TEXT(tblEventi[[#This Row],[DATA]],\"mmm\")))","v":"AGO"},"Verde pubblico"]
[null,"2016-09-01",{"$f":"IF(ISBLANK(tblEventi[[#This Row],[DATA]]),\"\",UPPER(TEXT(tblEventi[[#This Row],[DATA]],\"ggg\")))","v":"GIO"},{"$f":"IF(ISBLANK(tblEventi[[#This Row],[DATA]]),\"\",UPPER(TEXT(tblEventi[[#This Row],[DATA]],\"mmm\")))","v":"SET"},"Comitato bilanci"]
[null,"2016-10-01",{"$f":"IF(ISBLANK(tblEventi[[#This Row],[DATA]]),\"\",UPPER(TEXT(tblEventi[[#This Row],[DATA]],\"ggg\")))","v":"SAB"},{"$f":"IF(ISBLANK(tblEventi[[#This Row],[DATA]]),\"\",UPPER(TEXT(tblEventi[[#This Row],[DATA]],\"mmm\")))","v":"OTT"},"Comitato bilanci"]
[null,"2016-11-03",{"$f":"IF(ISBLANK(tblEventi[[#This Row],[DATA]]),\"\",UPPER(TEXT(tblEventi[[#This Row],[DATA]],\"ggg\")))","v":"GIO"},{"$f":"IF(ISBLANK(tblEventi[[#This Row],[DATA]]),\"\",UPPER(TEXT(tblEventi[[#This Row],[DATA]],\"mmm\")))","v":"NOV"},"Comitato bilanci"]
[null,"2016-12-01",{"$f":"IF(ISBLANK(tblEventi[[#This Row],[DATA]]),\"\",UPPER(TEXT(tblEventi[[#This Row],[DATA]],\"ggg\")))","v":"GIO"},{"$f":"IF(ISBLANK(tblEventi[[#This Row],[DATA]]),\"\",UPPER(TEXT(tblEventi[[#This Row],[DATA]],\"mmm\")))","v":"DIC"},"Comitato bilanci"]
[null,"2017-01-01",{"$f":"IF(ISBLANK(tblEventi[[#This Row],[DATA]]),\"\",UPPER(TEXT(tblEventi[[#This Row],[DATA]],\"ggg\")))","v":"DOM"},{"$f":"IF(ISBLANK(tblEventi[[#This Row],[DATA]]),\"\",UPPER(TEXT(tblEventi[[#This Row],[DATA]],\"mmm\")))","v":"GEN"},"Comitato bilanci"]
[null,"2017-02-02",{"$f":"IF(ISBLANK(tblEventi[[#This Row],[DATA]]),\"\",UPPER(TEXT(tblEventi[[#This Row],[DATA]],\"ggg\")))","v":"GIO"},{"$f":"IF(ISBLANK(tblEventi[[#This Row],[DATA]]),\"\",UPPER(TEXT(tblEventi[[#This Row],[DATA]],\"mmm\")))","v":"FEB"},"Comitato bilanci"]
[null,"2017-03-02",{"$f":"IF(ISBLANK(tblEventi[[#This Row],[DATA]]),\"\",UPPER(TEXT(tblEventi[[#This Row],[DATA]],\"ggg\")))","v":"GIO"},{"$f":"IF(ISBLANK(tblEventi[[#This Row],[DATA]]),\"\",UPPER(TEXT(tblEventi[[#This Row],[DATA]],\"mmm\")))","v":"MAR"},"Comitato bilanci"]
[null,"2017-04-01",{"$f":"IF(ISBLANK(tblEventi[[#This Row],[DATA]]),\"\",UPPER(TEXT(tblEventi[[#This Row],[DATA]],\"ggg\")))","v":"SAB"},{"$f":"IF(ISBLANK(tblEventi[[#This Row],[DATA]]),\"\",UPPER(TEXT(tblEventi[[#This Row],[DATA]],\"mmm\")))","v":"APR"},"Comitato bilanci"]
[null,"2017-05-01",{"$f":"IF(ISBLANK(tblEventi[[#This Row],[DATA]]),\"\",UPPER(TEXT(tblEventi[[#This Row],[DATA]],\"ggg\")))","v":"LUN"},{"$f":"IF(ISBLANK(tblEventi[[#This Row],[DATA]]),\"\",UPPER(TEXT(tblEventi[[#This Row],[DATA]],\"mmm\")))","v":"MAG"},"Comitato bilanci"]
[null,"2017-06-01",{"$f":"IF(ISBLANK(tblEventi[[#This Row],[DATA]]),\"\",UPPER(TEXT(tblEventi[[#This Row],[DATA]],\"ggg\")))","v":"GIO"},{"$f":"IF(ISBLANK(tblEventi[[#This Row],[DATA]]),\"\",UPPER(TEXT(tblEventi[[#This Row],[DATA]],\"mmm\")))","v":"GIU"},"Comitato bilanci"]
[null,"2017-06-02",{"$f":"IF(ISBLANK(tblEventi[[#This Row],[DATA]]),\"\",UPPER(TEXT(tblEventi[[#This Row],[DATA]],\"ggg\")))","v":"VEN"},{"$f":"IF(ISBLANK(tblEventi[[#This Row],[DATA]]),\"\",UPPER(TEXT(tblEventi[[#This Row],[DATA]],\"mmm\")))","v":"GIU"},"Consiglio comunale"]

{"sheet":"CALENDARIO","index":1,"n_rows":35,"n_cols":21,"rows_kept":35,"merged":[[1,5,1,11],[30,8,34,20]]}
[]
[null,null,2016,null,null,{"$f":"LOOKUP(NumMese,tblMesi[NUMERO],tblMesi[MESE])","v":"LUGLIO"}]
[null,null,7,null,null,{"$f":"DATE(VisualizzazioneAnno,NumMese,1)","v":"2016-07-01"},null,null,{"$f":"WEEKDAY(DataInizio)","v":6}]
[null,null,"LUN",null,null,"MAR",null,null,"MER",null,null,"GIO",null,null,"VEN",null,null,"SAB",null,null,"DOM"]
[]
[null,null,{"$f":"DataInizio-(WEEKDAY(DataInizio)-2)+{0;1;2;3;4;5}*7 +{1,2,3,4,5,6,7}-3+COLUMN(B1)","v":"2016-06-27"},null,null,{"$f":"DataInizio-(WEEKDAY(DataInizio)-2)+{0;1;2;3;4;5}*7 +{1,2,3,4,5,6,7}-3+COLUMN(C1)","v":"2016-06-28"},null,null,{"$f":"DataInizio-(WEEKDAY(DataInizio)-2)+{0;1;2;3;4;5}*7 +{1,2,3,4,5,6,7}-3+COLUMN(D1)","v":"2016-06-29"},null,null,{"$f":"DataInizio-(WEEKDAY(DataInizio)-2)+{0;1;2;3;4;5}*7 +{1,2,3,4,5,6,7}-3+COLUMN(E1)","v":"2016-06-30"},null,null,{"$f":"DataInizio-(WEEKDAY(DataInizio)-2)+{0;1;2;3;4;5}*7 +{1,2,3,4,5,6,7}-3+COLUMN(F1)","v":"2016-07-01"},null,null,{"$f":"DataInizio-(WEEKDAY(DataInizio)-2)+{0;1;2;3;4;5}*7 +{1,2,3,4,5,6,7}-3+COLUMN(G1)","v":"2016-07-02"},null,null,{"$f":"DataInizio-(WEEKDAY(DataInizio)-2)+{0;1;2;3;4;5}*7 +{1,2,3,4,5,6,7}-3+COLUMN(H1)","v":"2016-07-03"}]
[null,null,{"$f":"IFERROR(INDEX(tblEventi[],SMALL(IF(Date=C$6,ROW(Date)),ROW(1:1))-InizioRigaTabella,4),\"\")","v":""},null,null,{"$f":"IFERROR(INDEX(tblEventi[],SMALL(IF(Date=F$6,ROW(Date)),ROW(1:1))-InizioRigaTabella,4),\"\")","v":""},null,null,{"$f":"IFERROR(INDEX(tblEventi[],SMALL(IF(Date=I$6,ROW(Date)),ROW(1:1))-InizioRigaTabella,4),\"\")","v":""},null,null,{"$f":"IFERROR(INDEX(tblEventi[],SMALL(IF(Date=L$6,ROW(Date)),ROW(1:1))-InizioRigaTabella,4),\"\")","v":""},null,null,{"$f":"IFERROR(INDEX(tblEventi[],SMALL(IF(Date=O$6,ROW(Date)),ROW(1:1))-InizioRigaTabella,4),\"\")","v":"Verde pubblico"},null,null,{"$f":"IFERROR(INDEX(tblEventi[],SMALL(IF(Date=R$6,ROW(Date)),ROW(1:1))-InizioRigaTabella,4),\"\")","v":"Verde pubblico"},null,null,{"$f":"IFERROR(INDEX(tblEventi[],SMALL(IF(Date=U$6,ROW(Date)),ROW(1:1))-InizioRigaTabella,4),\"\")","v":"Serata di cinema al parco"}]
[null,null,{"$f":"IFERROR(INDEX(tblEventi[],SMALL(IF(Date=C$6,ROW(Date)),ROW(2:2))-InizioRigaTabella,4),\"\")","v":""},null,null,{"$f":"IFERROR(INDEX(tblEventi[],SMALL(IF(Date=F$6,ROW(Date)),ROW(2:2))-InizioRigaTabella,4),\"\")","v":""},null,null,{"$f":"IFERROR(INDEX(tblEventi[],SMALL(IF(Date=I$6,ROW(Date)),ROW(2:2))-InizioRigaTabella,4),\"\")","v":""},null,null,{"$f":"IFERROR(INDEX(tblEventi[],SMALL(IF(Date=L$6,ROW(Date)),ROW(2:2))-InizioRigaTabella,4),\"\")","v":""},null,null,{"$f":"IFERROR(INDEX(tblEventi[],SMALL(IF(Date=O$6,ROW(Date)),ROW(2:2))-InizioRigaTabella,4),\"\")","v":"Consiglio comunale"},null,null,{"$f":"IFERROR(INDEX(tblEventi[],SMALL(IF(Date=R$6,ROW(Date)),ROW(2:2))-InizioRigaTabella,4),\"\")","v":""},null,null,{"$f":"IFERROR(INDEX(tblEventi[],SMALL(IF(Date=U$6,ROW(Date)),ROW(2:2))-InizioRigaTabella,4),\"\")","v":""}]
[null,null,{"$f":"IFERROR(INDEX(tblEventi[],SMALL(IF(Date=C$6,ROW(Date)),ROW(3:3))-InizioRigaTabella,4),\"\")","v":""},null,null,{"$f":"IFERROR(INDEX(tblEventi[],SMALL(IF(Date=F$6,ROW(Date)),ROW(3:3))-InizioRigaTabella,4),\"\")","v":""},null,null,{"$f":"IFERROR(INDEX(tblEventi[],SMALL(IF(Date=I$6,ROW(Date)),ROW(3:3))-InizioRigaTabella,4),\"\")","v":""},null,null,{"$f":"IFERROR(INDEX(tblEventi[],SMALL(IF(Date=L$6,ROW(Date)),ROW(3:3))-InizioRigaTabella,4),\"\")","v":""},null,null,{"$f":"IFERROR(INDEX(tblEventi[],SMALL(IF(Date=O$6,ROW(Date)),ROW(3:3))-InizioRigaTabella,4),\"\")","v":""},null,null,{"$f":"IFERROR(INDEX(tblEventi[],SMALL(IF(Date=R$6,ROW(Date)),ROW(3:3))-InizioRigaTabella,4),\"\")","v":""},null,null,{"$f":"IFERROR(INDEX(tblEventi[],SMALL(IF(Date=U$6,ROW(Date)),ROW(3:3))-InizioRigaTabella,4),\"\")","v":""}]
[null,null,{"$f":"IFERROR(INDEX(tblEventi[],SMALL(IF(Date=C$6,ROW(Date)),ROW(4:4))-InizioRigaTabella,4),\"\")","v":""},null,null,{"$f":"IFERROR(INDEX(tblEventi[],SMALL(IF(Date=F$6,ROW(Date)),ROW(4:4))-InizioRigaTabella,4),\"\")","v":""},null,null,{"$f":"IFERROR(INDEX(tblEventi[],SMALL(IF(Date=I$6,ROW(Date)),ROW(4:4))-InizioRigaTabella,4),\"\")","v":""},null,null,{"$f":"IFERROR(INDEX(tblEventi[],SMALL(IF(Date=L$6,ROW(Date)),ROW(4:4))-InizioRigaTabella,4),\"\")","v":""},null,null,{"$f":"IFERROR(INDEX(tblEventi[],SMALL(IF(Date=O$6,ROW(Date)),ROW(4:4))-InizioRigaTabella,4),\"\")","v":""},null,null,{"$f":"IFERROR(INDEX(tblEventi[],SMALL(IF(Date=R$6,ROW(Date)),ROW(4:4))-InizioRigaTabella,4),\"\")","v":""},null,null,{"$f":"IFERROR(INDEX(tblEventi[],SMALL(IF(Date=U$6,ROW(Date)),ROW(4:4))-InizioRigaTabella,4),\"\")","v":""}]
[null,null,{"$f":"U6+1","v":"2016-07-04"},null,null,{"$f":"C11+1","v":"2016-07-05"},null,null,{"$f":"F11+1","v":"2016-07-06"},null,null,{"$f":"I11+1","v":"2016-07-07"},null,null,{"$f":"L11+1","v":"2016-07-08"},null,null,{"$f":"O11+1","v":"2016-07-09"},null,null,{"$f":"R11+1","v":"2016-07-10"}]
[null,null,{"$f":"IFERROR(INDEX(tblEventi[],SMALL(IF(Date=C$11,ROW(Date)),ROW(1:1))-InizioRigaTabella,4),\"\")","v":""},null,null,{"$f":"IFERROR(INDEX(tblEventi[],SMALL(IF(Date=F$11,ROW(Date)),ROW(1:1))-InizioRigaTabella,4),\"\")","v":""},null,null,{"$f":"IFERROR(INDEX(tblEventi[],SMALL(IF(Date=I$11,ROW(Date)),ROW(1:1))-InizioRigaTabella,4),\"\")","v":""},null,null,{"$f":"IFERROR(INDEX(tblEventi[],SMALL(IF(Date=L$11,ROW(Date)),ROW(1:1))-InizioRigaTabella,4),\"\")","v":""},null,null,{"$f":"IFERROR(INDEX(tblEventi[],SMALL(IF(Date=O$11,ROW(Date)),ROW(1:1))-InizioRigaTabella,4),\"\")","v":"Consiglio comunale"},null,null,{"$f":"IFERROR(INDEX(tblEventi[],SMALL(IF(Date=R$11,ROW(Date)),ROW(1:1))-InizioRigaTabella,4),\"\")","v":""},null,null,{"$f":"IFERROR(INDEX(tblEventi[],SMALL(IF(Date=U$11,ROW(Date)),ROW(1:1))-InizioRigaTabella,4),\"\")","v":""}]
[null,null,{"$f":"IFERROR(INDEX(tblEventi[],SMALL(IF(Date=C$11,ROW(Date)),ROW(2:2))-InizioRigaTabella,4),\"\")","v":""},null,null,{"$f":"IFERROR(INDEX(tblEventi[],SMALL(IF(Date=F$11,ROW(Date)),ROW(2:2))-InizioRigaTabella,4),\"\")","v":""},null,null,{"$f":"IFERROR(INDEX(tblEventi[],SMALL(IF(Date=I$11,ROW(Date)),ROW(2:2))-InizioRigaTabella,4),\"\")","v":""},null,null,{"$f":"IFERROR(INDEX(tblEventi[],SMALL(IF(Date=L$11,ROW(Date)),ROW(2:2))-InizioRigaTabella,4),\"\")","v":""},null,null,{"$f":"IFERROR(INDEX(tblEventi[],SMALL(IF(Date=O$11,ROW(Date)),ROW(2:2))-InizioRigaTabella,4),\"\")","v":""},null,null,{"$f":"IFERROR(INDEX(tblEventi[],SMALL(IF(Date=R$11,ROW(Date)),ROW(2:2))-InizioRigaTabella,4),\"\")","v":""},null,null,{"$f":"IFERROR(INDEX(tblEventi[],SMALL(IF(Date=U$11,ROW(Date)),ROW(2:2))-InizioRigaTabella,4),\"\")","v":""}]
[null,null,{"$f":"IFERROR(INDEX(tblEventi[],SMALL(IF(Date=C$11,ROW(Date)),ROW(3:3))-InizioRigaTabella,4),\"\")","v":""},null,null,{"$f":"IFERROR(INDEX(tblEventi[],SMALL(IF(Date=F$11,ROW(Date)),ROW(3:3))-InizioRigaTabella,4),\"\")","v":""},null,null,{"$f":"IFERROR(INDEX(tblEventi[],SMALL(IF(Date=I$11,ROW(Date)),ROW(3:3))-InizioRigaTabella,4),\"\")","v":""},null,null,{"$f":"IFERROR(INDEX(tblEventi[],SMALL(IF(Date=L$11,ROW(Date)),ROW(3:3))-InizioRigaTabella,4),\"\")","v":""},null,null,{"$f":"IFERROR(INDEX(tblEventi[],SMALL(IF(Date=O$11,ROW(Date)),ROW(3:3))-InizioRigaTabella,4),\"\")","v":""},null,null,{"$f":"IFERROR(INDEX(tblEventi[],SMALL(IF(Date=R$11,ROW(Date)),ROW(3:3))-InizioRigaTabella,4),\"\")","v":""},null,null,{"$f":"IFERROR(INDEX(tblEventi[],SMALL(IF(Date=U$11,ROW(Date)),ROW(3:3))-InizioRigaTabella,4),\"\")","v":""}]
[null,null,{"$f":"IFERROR(INDEX(tblEventi[],SMALL(IF(Date=C$11,ROW(Date)),ROW(4:4))-InizioRigaTabella,4),\"\")","v":""},null,null,{"$f":"IFERROR(INDEX(tblEventi[],SMALL(IF(Date=F$11,ROW(Date)),ROW(4:4))-InizioRigaTabella,4),\"\")","v":""},null,null,{"$f":"IFERROR(INDEX(tblEventi[],SMALL(IF(Date=I$11,ROW(Date)),ROW(4:4))-InizioRigaTabella,4),\"\")","v":""},null,null,{"$f":"IFERROR(INDEX(tblEventi[],SMALL(IF(Date=L$11,ROW(Date)),ROW(4:4))-InizioRigaTabella,4),\"\")","v":""},null,null,{"$f":"IFERROR(INDEX(tblEventi[],SMALL(IF(Date=O$11,ROW(Date)),ROW(4:4))-InizioRigaTabella,4),\"\")","v":""},null,null,{"$f":"IFERROR(INDEX(tblEventi[],SMALL(IF(Date=R$11,ROW(Date)),ROW(4:4))-InizioRigaTabella,4),\"\")","v":""},null,null,{"$f":"IFERROR(INDEX(tblEventi[],SMALL(IF(Date=U$11,ROW(Date)),ROW(4:4))-InizioRigaTabella,4),\"\")","v":""}]
[null,null,{"$f":"U11+1","v":"2016-07-11"},null,null,{"$f":"C16+1","v":"2016-07-12"},null,null,{"$f":"F16+1","v":"2016-07-13"},null,null,{"$f":"I16+1","v":"2016-07-14"},null,null,{"$f":"L16+1","v":"2016-07-15"},null,null,{"$f":"O16+1","v":"2016-07-16"},null,null,{"$f":"R16+1","v":"2016-07-17"}]
[null,null,{"$f":"IFERROR(INDEX(tblEventi[],SMALL(IF(Date=C$16,ROW(Date)),ROW(1:1))-InizioRigaTabella,4),\"\")","v":"Pranzo Camera di Commercio"},null,null,{"$f":"IFERROR(INDEX(tblEventi[],SMALL(IF(Date=F$16,ROW(Date)),ROW(1:1))-InizioRigaTabella,4),\"\")","v":"Mostra di antiquariato"},null,null,{"$f":"IFERROR(INDEX(tblEventi[],SMALL(IF(Date=I$16,ROW(Date)),ROW(1:1))-InizioRigaTabella,4),\"\")","v":""},null,null,{"$f":"IFERROR(INDEX(tblEventi[],SMALL(IF(Date=L$16,ROW(Date)),ROW(1:1))-InizioRigaTabella,4),\"\")","v":"Seminario comunità"},null,null,{"$f":"IFERROR(INDEX(tblEventi[],SMALL(IF(Date=O$16,ROW(Date)),ROW(1:1))-InizioRigaTabella,4),\"\")","v":"Consiglio comunale"},null,null,{"$f":"IFERROR(INDEX(tblEventi[],SMALL(IF(Date=R$16,ROW(Date)),ROW(1:1))-InizioRigaTabella,4),\"\")","v":""},null,null,{"$f":"IFERROR(INDEX(tblEventi[],SMALL(IF(Date=U$16,ROW(Date)),ROW(1:1))-InizioRigaTabella,4),\"\")","v":""}]
[null,null,{"$f":"IFERROR(INDEX(tblEventi[],SMALL(IF(Date=C$16,ROW(Date)),ROW(2:2))-InizioRigaTabella,4),\"\")","v":""},null,null,{"$f":"IFERROR(INDEX(tblEventi[],SMALL(IF(Date=F$16,ROW(Date)),ROW(2:2))-InizioRigaTabella,4),\"\")","v":""},null,null,{"$f":"IFERROR(INDEX(tblEventi[],SMALL(IF(Date=I$16,ROW(Date)),ROW(2:2))-InizioRigaTabella,4),\"\")","v":""},null,null,{"$f":"IFERROR(INDEX(tblEventi[],SMALL(IF(Date=L$16,ROW(Date)),ROW(2:2))-InizioRigaTabella,4),\"\")","v":""},null,null,{"$f":"IFERROR(INDEX(tblEventi[],SMALL(IF(Date=O$16,ROW(Date)),ROW(2:2))-InizioRigaTabella,4),\"\")","v":""},null,null,{"$f":"IFERROR(INDEX(tblEventi[],SMALL(IF(Date=R$16,ROW(Date)),ROW(2:2))-InizioRigaTabella,4),\"\")","v":""},null,null,{"$f":"IFERROR(INDEX(tblEventi[],SMALL(IF(Date=U$16,ROW(Date)),ROW(2:2))-InizioRigaTabella,4),\"\")","v":""}]
[null,null,{"$f":"IFERROR(INDEX(tblEventi[],SMALL(IF(Date=C$16,ROW(Date)),ROW(3:3))-InizioRigaTabella,4),\"\")","v":""},null,null,{"$f":"IFERROR(INDEX(tblEventi[],SMALL(IF(Date=F$16,ROW(Date)),ROW(3:3))-InizioRigaTabella,4),\"\")","v":""},null,null,{"$f":"IFERROR(INDEX(tblEventi[],SMALL(IF(Date=I$16,ROW(Date)),ROW(3:3))-InizioRigaTabella,4),\"\")","v":""},null,null,{"$f":"IFERROR(INDEX(tblEventi[],SMALL(IF(Date=L$16,ROW(Date)),ROW(3:3))-InizioRigaTabella,4),\"\")","v":""},null,null,{"$f":"IFERROR(INDEX(tblEventi[],SMALL(IF(Date=O$16,ROW(Date)),ROW(3:3))-InizioRigaTabella,4),\"\")","v":""},null,null,{"$f":"IFERROR(INDEX(tblEventi[],SMALL(IF(Date=R$16,ROW(Date)),ROW(3:3))-InizioRigaTabella,4),\"\")","v":""},null,null,{"$f":"IFERROR(INDEX(tblEventi[],SMALL(IF(Date=U$16,ROW(Date)),ROW(3:3))-InizioRigaTabella,4),\"\")","v":""}]
[null,null,{"$f":"IFERROR(INDEX(tblEventi[],SMALL(IF(Date=C$16,ROW(Date)),ROW(4:4))-InizioRigaTabella,4),\"\")","v":""},null,null,{"$f":"IFERROR(INDEX(tblEventi[],SMALL(IF(Date=F$16,ROW(Date)),ROW(4:4))-InizioRigaTabella,4),\"\")","v":""},null,null,{"$f":"IFERROR(INDEX(tblEventi[],SMALL(IF(Date=I$16,ROW(Date)),ROW(4:4))-InizioRigaTabella,4),\"\")","v":""},null,null,{"$f":"IFERROR(INDEX(tblEventi[],SMALL(IF(Date=L$16,ROW(Date)),ROW(4:4))-InizioRigaTabella,4),\"\")","v":""},null,null,{"$f":"IFERROR(INDEX(tblEventi[],SMALL(IF(Date=O$16,ROW(Date)),ROW(4:4))-InizioRigaTabella,4),\"\")","v":""},null,null,{"$f":"IFERROR(INDEX(tblEventi[],SMALL(IF(Date=R$16,ROW(Date)),ROW(4:4))-InizioRigaTabella,4),\"\")","v":""},null,null,{"$f":"IFERROR(INDEX(tblEventi[],SMALL(IF(Date=U$16,ROW(Date)),ROW(4:4))-InizioRigaTabella,4),\"\")","v":""}]
[null,null,{"$f":"U16+1","v":"2016-07-18"},null,null,{"$f":"C21+1","v":"2016-07-19"},null,null,{"$f":"F21+1","v":"2016-07-20"},null,null,{"$f":"I21+1","v":"2016-07-21"},null,null,{"$f":"L21+1","v":"2016-07-22"},null,null,{"$f":"O21+1","v":"2016-07-23"},null,null,{"$f":"R21+1","v":"2016-07-24"}]
[null,null,{"$f":"IFERROR(INDEX(tblEventi[],SMALL(IF(Date=C$21,ROW(Date)),ROW(1:1))-InizioRigaTabella,4),\"\")","v":""},null,null,{"$f":"IFERROR(INDEX(tblEventi[],SMALL(IF(Date=F$21,ROW(Date)),ROW(1:1))-InizioRigaTabella,4),\"\")","v":"Seminario di pianificazione strategica"},null,null,{"$f":"IFERROR(INDEX(tblEventi[],SMALL(IF(Date=I$21,ROW(Date)),ROW(1:1))-InizioRigaTabella,4),\"\")","v":"Pulizia parco"},null,null,{"$f":"IFERROR(INDEX(tblEventi[],SMALL(IF(Date=L$21,ROW(Date)),ROW(1:1))-InizioRigaTabella,4),\"\")","v":""},null,null,{"$f":"IFERROR(INDEX(tblEventi[],SMALL(IF(Date=O$21,ROW(Date)),ROW(1:1))-InizioRigaTabella,4),\"\")","v":"Consiglio comunale"},null,null,{"$f":"IFERROR(INDEX(tblEventi[],SMALL(IF(Date=R$21,ROW(Date)),ROW(1:1))-InizioRigaTabella,4),\"\")","v":""},null,null,{"$f":"IFERROR(INDEX(tblEventi[],SMALL(IF(Date=U$21,ROW(Date)),ROW(1:1))-InizioRigaTabella,4),\"\")","v":""}]
[null,null,{"$f":"IFERROR(INDEX(tblEventi[],SMALL(IF(Date=C$21,ROW(Date)),ROW(2:2))-InizioRigaTabella,4),\"\")","v":""},null,null,{"$f":"IFERROR(INDEX(tblEventi[],SMALL(IF(Date=F$21,ROW(Date)),ROW(2:2))-InizioRigaTabella,4),\"\")","v":""},null,null,{"$f":"IFERROR(INDEX(tblEventi[],SMALL(IF(Date=I$21,ROW(Date)),ROW(2:2))-InizioRigaTabella,4),\"\")","v":""},null,null,{"$f":"IFERROR(INDEX(tblEventi[],SMALL(IF(Date=L$21,ROW(Date)),ROW(2:2))-InizioRigaTabella,4),\"\")","v":""},null,null,{"$f":"IFERROR(INDEX(tblEventi[],SMALL(IF(Date=O$21,ROW(Date)),ROW(2:2))-InizioRigaTabella,4),\"\")","v":""},null,null,{"$f":"IFERROR(INDEX(tblEventi[],SMALL(IF(Date=R$21,ROW(Date)),ROW(2:2))-InizioRigaTabella,4),\"\")","v":""},null,null,{"$f":"IFERROR(INDEX(tblEventi[],SMALL(IF(Date=U$21,ROW(Date)),ROW(2:2))-InizioRigaTabella,4),\"\")","v":""}]
[null,null,{"$f":"IFERROR(INDEX(tblEventi[],SMALL(IF(Date=C$21,ROW(Date)),ROW(3:3))-InizioRigaTabella,4),\"\")","v":""},null,null,{"$f":"IFERROR(INDEX(tblEventi[],SMALL(IF(Date=F$21,ROW(Date)),ROW(3:3))-InizioRigaTabella,4),\"\")","v":""},null,null,{"$f":"IFERROR(INDEX(tblEventi[],SMALL(IF(Date=I$21,ROW(Date)),ROW(3:3))-InizioRigaTabella,4),\"\")","v":""},null,null,{"$f":"IFERROR(INDEX(tblEventi[],SMALL(IF(Date=L$21,ROW(Date)),ROW(3:3))-InizioRigaTabella,4),\"\")","v":""},null,null,{"$f":"IFERROR(INDEX(tblEventi[],SMALL(IF(Date=O$21,ROW(Date)),ROW(3:3))-InizioRigaTabella,4),\"\")","v":""},null,null,{"$f":"IFERROR(INDEX(tblEventi[],SMALL(IF(Date=R$21,ROW(Date)),ROW(3:3))-InizioRigaTabella,4),\"\")","v":""},null,null,{"$f":"IFERROR(INDEX(tblEventi[],SMALL(IF(Date=U$21,ROW(Date)),ROW(3:3))-InizioRigaTabella,4),\"\")","v":""}]
[null,null,{"$f":"IFERROR(INDEX(tblEventi[],SMALL(IF(Date=C$21,ROW(Date)),ROW(4:4))-InizioRigaTabella,4),\"\")","v":""},null,null,{"$f":"IFERROR(INDEX(tblEventi[],SMALL(IF(Date=F$21,ROW(Date)),ROW(4:4))-InizioRigaTabella,4),\"\")","v":""},null,null,{"$f":"IFERROR(INDEX(tblEventi[],SMALL(IF(Date=I$21,ROW(Date)),ROW(4:4))-InizioRigaTabella,4),\"\")","v":""},null,null,{"$f":"IFERROR(INDEX(tblEventi[],SMALL(IF(Date=L$21,ROW(Date)),ROW(4:4))-InizioRigaTabella,4),\"\")","v":""},null,null,{"$f":"IFERROR(INDEX(tblEventi[],SMALL(IF(Date=O$21,ROW(Date)),ROW(4:4))-InizioRigaTabella,4),\"\")","v":""},null,null,{"$f":"IFERROR(INDEX(tblEventi[],SMALL(IF(Date=R$21,ROW(Date)),ROW(4:4))-InizioRigaTabella,4),\"\")","v":""},null,null,{"$f":"IFERROR(INDEX(tblEventi[],SMALL(IF(Date=U$21,ROW(Date)),ROW(4:4))-InizioRigaTabella,4),\"\")","v":""}]
[null,null,{"$f":"U21+1","v":"2016-07-25"},null,null,{"$f":"C26+1","v":"2016-07-26"},null,null,{"$f":"F26+1","v":"2016-07-27"},null,null,{"$f":"I26+1","v":"2016-07-28"},null,null,{"$f":"L26+1","v":"2016-07-29"},null,null,{"$f":"O26+1","v":"2016-07-30"},null,null,{"$f":"R26+1","v":"2016-07-31"}]
[null,null,{"$f":"IFERROR(INDEX(tblEventi[],SMALL(IF(Date=C$26,ROW(Date)),ROW(1:1))-InizioRigaTabella,4),\"\")","v":""},null,null,{"$f":"IFERROR(INDEX(tblEventi[],SMALL(IF(Date=F$26,ROW(Date)),ROW(1:1))-InizioRigaTabella,4),\"\")","v":"Passeggiata in centro"},null,null,{"$f":"IFERROR(INDEX(tblEventi[],SMALL(IF(Date=I$26,ROW(Date)),ROW(1:1))-InizioRigaTabella,4),\"\")","v":""},null,null,{"$f":"IFERROR(INDEX(tblEventi[],SMALL(IF(Date=L$26,ROW(Date)),ROW(1:1))-InizioRigaTabella,4),\"\")","v":""},null,null,{"$f":"IFERROR(INDEX(tblEventi[],SMALL(IF(Date=O$26,ROW(Date)),ROW(1:1))-InizioRigaTabella,4),\"\")","v":"Consiglio comunale"},null,null,{"$f":"IFERROR(INDEX(tblEventi[],SMALL(IF(Date=R$26,ROW(Date)),ROW(1:1))-InizioRigaTabella,4),\"\")","v":""},null,null,{"$f":"IFERROR(INDEX(tblEventi[],SMALL(IF(Date=U$26,ROW(Date)),ROW(1:1))-InizioRigaTabella,4),\"\")","v":""}]
[null,null,{"$f":"IFERROR(INDEX(tblEventi[],SMALL(IF(Date=C$26,ROW(Date)),ROW(2:2))-InizioRigaTabella,4),\"\")","v":""},null,null,{"$f":"IFERROR(INDEX(tblEventi[],SMALL(IF(Date=F$26,ROW(Date)),ROW(2:2))-InizioRigaTabella,4),\"\")","v":"Giro dei bar"},null,null,{"$f":"IFERROR(INDEX(tblEventi[],SMALL(IF(Date=I$26,ROW(Date)),ROW(2:2))-InizioRigaTabella,4),\"\")","v":""},null,null,{"$f":"IFERROR(INDEX(tblEventi[],SMALL(IF(Date=L$26,ROW(Date)),ROW(2:2))-InizioRigaTabella,4),\"\")","v":""},null,null,{"$f":"IFERROR(INDEX(tblEventi[],SMALL(IF(Date=O$26,ROW(Date)),ROW(2:2))-InizioRigaTabella,4),\"\")","v":""},null,null,{"$f":"IFERROR(INDEX(tblEventi[],SMALL(IF(Date=R$26,ROW(Date)),ROW(2:2))-InizioRigaTabella,4),\"\")","v":""},null,null,{"$f":"IFERROR(INDEX(tblEventi[],SMALL(IF(Date=U$26,ROW(Date)),ROW(2:2))-InizioRigaTabella,4),\"\")","v":""}]
[null,null,{"$f":"IFERROR(INDEX(tblEventi[],SMALL(IF(Date=C$26,ROW(Date)),ROW(3:3))-InizioRigaTabella,4),\"\")","v":""},null,null,{"$f":"IFERROR(INDEX(tblEventi[],SMALL(IF(Date=F$26,ROW(Date)),ROW(3:3))-InizioRigaTabella,4),\"\")","v":""},null,null,{"$f":"IFERROR(INDEX(tblEventi[],SMALL(IF(Date=I$26,ROW(Date)),ROW(3:3))-InizioRigaTabella,4),\"\")","v":""},null,null,{"$f":"IFERROR(INDEX(tblEventi[],SMALL(IF(Date=L$26,ROW(Date)),ROW(3:3))-InizioRigaTabella,4),\"\")","v":""},null,null,{"$f":"IFERROR(INDEX(tblEventi[],SMALL(IF(Date=O$26,ROW(Date)),ROW(3:3))-InizioRigaTabella,4),\"\")","v":""},null,null,{"$f":"IFERROR(INDEX(tblEventi[],SMALL(IF(Date=R$26,ROW(Date)),ROW(3:3))-InizioRigaTabella,4),\"\")","v":""},null,null,{"$f":"IFERROR(INDEX(tblEventi[],SMALL(IF(Date=U$26,ROW(Date)),ROW(3:3))-InizioRigaTabella,4),\"\")","v":""}]
[null,null,{"$f":"IFERROR(INDEX(tblEventi[],SMALL(IF(Date=C$26,ROW(Date)),ROW(4:4))-InizioRigaTabella,4),\"\")","v":""},null,null,{"$f":"IFERROR(INDEX(tblEventi[],SMALL(IF(Date=F$26,ROW(Date)),ROW(4:4))-InizioRigaTabella,4),\"\")","v":""},null,null,{"$f":"IFERROR(INDEX(tblEventi[],SMALL(IF(Date=I$26,ROW(Date)),ROW(4:4))-InizioRigaTabella,4),\"\")","v":""},null,null,{"$f":"IFERROR(INDEX(tblEventi[],SMALL(IF(Date=L$26,ROW(Date)),ROW(4:4))-InizioRigaTabella,4),\"\")","v":""},null,null,{"$f":"IFERROR(INDEX(tblEventi[],SMALL(IF(Date=O$26,ROW(Date)),ROW(4:4))-InizioRigaTabella,4),\"\")","v":""},null,null,{"$f":"IFERROR(INDEX(tblEventi[],SMALL(IF(Date=R$26,ROW(Date)),ROW(4:4))-InizioRigaTabella,4),\"\")","v":""},null,null,{"$f":"IFERROR(INDEX(tblEventi[],SMALL(IF(Date=U$26,ROW(Date)),ROW(4:4))-InizioRigaTabella,4),\"\")","v":""}]
[null,null,{"$f":"U26+1","v":"2016-08-01"},null,null,{"$f":"C31+1","v":"2016-08-02"},null,null,"NOTE:"]
[null,null,{"$f":"IFERROR(INDEX(tblEventi[],SMALL(IF(Date=C$31,ROW(Date)),ROW(1:1))-InizioRigaTabella,4),\"\")","v":""},null,null,{"$f":"IFERROR(INDEX(tblEventi[],SMALL(IF(Date=F$31,ROW(Date)),ROW(1:1))-InizioRigaTabella,4),\"\")","v":""}]
[null,null,{"$f":"IFERROR(INDEX(tblEventi[],SMALL(IF(Date=C$31,ROW(Date)),ROW(2:2))-InizioRigaTabella,4),\"\")","v":""},null,null,{"$f":"IFERROR(INDEX(tblEventi[],SMALL(IF(Date=F$31,ROW(Date)),ROW(2:2))-InizioRigaTabella,4),\"\")","v":""}]
[null,null,{"$f":"IFERROR(INDEX(tblEventi[],SMALL(IF(Date=C$31,ROW(Date)),ROW(3:3))-InizioRigaTabella,4),\"\")","v":""},null,null,{"$f":"IFERROR(INDEX(tblEventi[],SMALL(IF(Date=F$31,ROW(Date)),ROW(3:3))-InizioRigaTabella,4),\"\")","v":""}]
[null,null,{"$f":"IFERROR(INDEX(tblEventi[],SMALL(IF(Date=C$31,ROW(Date)),ROW(4:4))-InizioRigaTabella,4),\"\")","v":""},null,null,{"$f":"IFERROR(INDEX(tblEventi[],SMALL(IF(Date=F$31,ROW(Date)),ROW(4:4))-InizioRigaTabella,4),\"\")","v":""}]

{"sheet":"VERSIONE STAMPABILE","index":2,"n_rows":35,"n_cols":21,"rows_kept":35,"merged":[[1,5,1,11],[30,8,34,20]]}
[]
[null,null,{"$f":"VisualizzazioneAnno","v":2016},null,null,{"$f":"VisualizzazioneMese","v":"LUGLIO"},0,0,0,0,0,0]
[]
[null,null,"LUN",null,null,"MAR",null,null,"MER",null,null,"GIO",null,null,"VEN",null,null,"SAB",null,null,"DOM"]
[]
[null,null,{"$f":"CALENDARIO!C6","v":"2016-06-27"},{"$f":"CALENDARIO!D6","v":0},{"$f":"CALENDARIO!E6","v":0},{"$f":"CALENDARIO!F6","v":"2016-06-28"},{"$f":"CALENDARIO!G6","v":0},{"$f":"CALENDARIO!H6","v":0},{"$f":"CALENDARIO!I6","v":"2016-06-29"},{"$f":"CALENDARIO!J6","v":0},{"$f":"CALENDARIO!K6","v":0},{"$f":"CALENDARIO!L6","v":"2016-06-30"},{"$f":"CALENDARIO!M6","v":0},{"$f":"CALENDARIO!N6","v":0},{"$f":"CALENDARIO!O6","v":"2016-07-01"},{"$f":"CALENDARIO!P6","v":0},{"$f":"CALENDARIO!Q6","v":0},{"$f":"CALENDARIO!R6","v":"2016-07-02"},{"$f":"CALENDARIO!S6","v":0},{"$f":"CALENDARIO!T6","v":0},{"$f":"CALENDARIO!U6","v":"2016-07-03"}]
[null,null,{"$f":"CALENDARIO!C7","v":""},{"$f":"CALENDARIO!D7","v":0},{"$f":"CALENDARIO!E7","v":0},{"$f":"CALENDARIO!F7","v":""},{"$f":"CALENDARIO!G7","v":0},{"$f":"CALENDARIO!H7","v":0},{"$f":"CALENDARIO!I7","v":""},{"$f":"CALENDARIO!J7","v":0},{"$f":"CALENDARIO!K7","v":0},{"$f":"CALENDARIO!L7","v":""},{"$f":"CALENDARIO!M7","v":0},{"$f":"CALENDARIO!N7","v":0},{"$f":"CALENDARIO!O7","v":"Verde pubblico"},{"$f":"CALENDARIO!P7","v":0},{"$f":"CALENDARIO!Q7","v":0},{"$f":"CALENDARIO!R7","v":"Verde pubblico"},{"$f":"CALENDARIO!S7","v":0},{"$f":"CALENDARIO!T7","v":0},{"$f":"CALENDARIO!U7","v":"Serata di cinema al parco"}]
[null,null,{"$f":"CALENDARIO!C8","v":""},{"$f":"CALENDARIO!D8","v":"00:00:00"},{"$f":"CALENDARIO!E8","v":"00:00:00"},{"$f":"CALENDARIO!F8","v":""},{"$f":"CALENDARIO!G8","v":"00:00:00"},{"$f":"CALENDARIO!H8","v":"00:00:00"},{"$f":"CALENDARIO!I8","v":""},{"$f":"CALENDARIO!J8","v":"00:00:00"},{"$f":"CALENDARIO!K8","v":"00:00:00"},{"$f":"CALENDARIO!L8","v":""},{"$f":"CALENDARIO!M8","v":"00:00:00"},{"$f":"CALENDARIO!N8","v":"00:00:00"},{"$f":"CALENDARIO!O8","v":"Consiglio comunale"},{"$f":"CALENDARIO!P8","v":"00:00:00"},{"$f":"CALENDARIO!Q8","v":"00:00:00"},{"$f":"CALENDARIO!R8","v":""},{"$f":"CALENDARIO!S8","v":"00:00:00"},{"$f":"CALENDARIO!T8","v":"00:00:00"},{"$f":"CALENDARIO!U8","v":""}]
[null,null,{"$f":"CALENDARIO!C9","v":""},{"$f":"CALENDARIO!D9","v":0},{"$f":"CALENDARIO!E9","v":0},{"$f":"CALENDARIO!F9","v":""},{"$f":"CALENDARIO!G9","v":0},{"$f":"CALENDARIO!H9","v":0},{"$f":"CALENDARIO!I9","v":""},{"$f":"CALENDARIO!J9","v":0},{"$f":"CALENDARIO!K9","v":0},{"$f":"CALENDARIO!L9","v":""},{"$f":"CALENDARIO!M9","v":0},{"$f":"CALENDARIO!N9","v":0},{"$f":"CALENDARIO!O9","v":""},{"$f":"CALENDARIO!P9","v":0},{"$f":"CALENDARIO!Q9","v":0},{"$f":"CALENDARIO!R9","v":""},{"$f":"CALENDARIO!S9","v":0},{"$f":"CALENDARIO!T9","v":0},{"$f":"CALENDARIO!U9","v":""}]
[null,null,{"$f":"CALENDARIO!C10","v":""},{"$f":"CALENDARIO!D10","v":0},{"$f":"CALENDARIO!E10","v":0},{"$f":"CALENDARIO!F10","v":""},{"$f":"CALENDARIO!G10","v":0},{"$f":"CALENDARIO!H10","v":0},{"$f":"CALENDARIO!I10","v":""},{"$f":"CALENDARIO!J10","v":0},{"$f":"CALENDARIO!K10","v":0},{"$f":"CALENDARIO!L10","v":""},{"$f":"CALENDARIO!M10","v":0},{"$f":"CALENDARIO!N10","v":0},{"$f":"CALENDARIO!O10","v":""},{"$f":"CALENDARIO!P10","v":0},{"$f":"CALENDARIO!Q10","v":0},{"$f":"CALENDARIO!R10","v":""},{"$f":"CALENDARIO!S10","v":0},{"$f":"CALENDARIO!T10","v":0},{"$f":"CALENDARIO!U10","v":""}]
[null,null,{"$f":"CALENDARIO!C11","v":"2016-07-04"},{"$f":"CALENDARIO!D11","v":0},{"$f":"CALENDARIO!E11","v":0},{"$f":"CALENDARIO!F11","v":"2016-07-05"},{"$f":"CALENDARIO!G11","v":0},{"$f":"CALENDARIO!H11","v":0},{"$f":"CALENDARIO!I11","v":"2016-07-06"},{"$f":"CALENDARIO!J11","v":0},{"$f":"CALENDARIO!K11","v":0},{"$f":"CALENDARIO!L11","v":"2016-07-07"},{"$f":"CALENDARIO!M11","v":0},{"$f":"CALENDARIO!N11","v":0},{"$f":"CALENDARIO!O11","v":"2016-07-08"},{"$f":"CALENDARIO!P11","v":0},{"$f":"CALENDARIO!Q11","v":0},{"$f":"CALENDARIO!R11","v":"2016-07-09"},{"$f":"CALENDARIO!S11","v":0},{"$f":"CALENDARIO!T11","v":0},{"$f":"CALENDARIO!U11","v":"2016-07-10"}]
[null,null,{"$f":"CALENDARIO!C12","v":""},{"$f":"CALENDARIO!D12","v":0},{"$f":"CALENDARIO!E12","v":0},{"$f":"CALENDARIO!F12","v":""},{"$f":"CALENDARIO!G12","v":0},{"$f":"CALENDARIO!H12","v":0},{"$f":"CALENDARIO!I12","v":""},{"$f":"CALENDARIO!J12","v":0},{"$f":"CALENDARIO!K12","v":0},{"$f":"CALENDARIO!L12","v":""},{"$f":"CALENDARIO!M12","v":0},{"$f":"CALENDARIO!N12","v":0},{"$f":"CALENDARIO!O12","v":"Consiglio comunale"},{"$f":"CALENDARIO!P12","v":0},{"$f":"CALENDARIO!Q12","v":0},{"$f":"CALENDARIO!R12","v":""},{"$f":"CALENDARIO!S12","v":0},{"$f":"CALENDARIO!T12","v":0},{"$f":"CALENDARIO!U12","v":""}]
[null,null,{"$f":"CALENDARIO!C13","v":""},{"$f":"CALENDARIO!D13","v":0},{"$f":"CALENDARIO!E13","v":0},{"$f":"CALENDARIO!F13","v":""},{"$f":"CALENDARIO!G13","v":0},{"$f":"CALENDARIO!H13","v":0},{"$f":"CALENDARIO!I13","v":""},{"$f":"CALENDARIO!J13","v":0},{"$f":"CALENDARIO!K13","v":0},{"$f":"CALENDARIO!L13","v":""},{"$f":"CALENDARIO!M13","v":0},{"$f":"CALENDARIO!N13","v":0},{"$f":"CALENDARIO!O13","v":""},{"$f":"CALENDARIO!P13","v":0},{"$f":"CALENDARIO!Q13","v":0},{"$f":"CALENDARIO!R13","v":""},{"$f":"CALENDARIO!S13","v":0},{"$f":"CALENDARIO!T13","v":0},{"$f":"CALENDARIO!U13","v":""}]
[null,null,{"$f":"CALENDARIO!C14","v":""},{"$f":"CALENDARIO!D14","v":0},{"$f":"CALENDARIO!E14","v":0},{"$f":"CALENDARIO!F14","v":""},{"$f":"CALENDARIO!G14","v":0},{"$f":"CALENDARIO!H14","v":0},{"$f":"CALENDARIO!I14","v":""},{"$f":"CALENDARIO!J14","v":0},{"$f":"CALENDARIO!K14","v":0},{"$f":"CALENDARIO!L14","v":""},{"$f":"CALENDARIO!M14","v":0},{"$f":"CALENDARIO!N14","v":0},{"$f":"CALENDARIO!O14","v":""},{"$f":"CALENDARIO!P14","v":0},{"$f":"CALENDARIO!Q14","v":0},{"$f":"CALENDARIO!R14","v":""},{"$f":"CALENDARIO!S14","v":0},{"$f":"CALENDARIO!T14","v":0},{"$f":"CALENDARIO!U14","v":""}]
[null,null,{"$f":"CALENDARIO!C15","v":""},{"$f":"CALENDARIO!D15","v":0},{"$f":"CALENDARIO!E15","v":0},{"$f":"CALENDARIO!F15","v":""},{"$f":"CALENDARIO!G15","v":0},{"$f":"CALENDARIO!H15","v":0},{"$f":"CALENDARIO!I15","v":""},{"$f":"CALENDARIO!J15","v":0},{"$f":"CALENDARIO!K15","v":0},{"$f":"CALENDARIO!L15","v":""},{"$f":"CALENDARIO!M15","v":0},{"$f":"CALENDARIO!N15","v":0},{"$f":"CALENDARIO!O15","v":""},{"$f":"CALENDARIO!P15","v":0},{"$f":"CALENDARIO!Q15","v":0},{"$f":"CALENDARIO!R15","v":""},{"$f":"CALENDARIO!S15","v":0},{"$f":"CALENDARIO!T15","v":0},{"$f":"CALENDARIO!U15","v":""}]
[null,null,{"$f":"CALENDARIO!C16","v":"2016-07-11"},{"$f":"CALENDARIO!D16","v":0},{"$f":"CALENDARIO!E16","v":0},{"$f":"CALENDARIO!F16","v":"2016-07-12"},{"$f":"CALENDARIO!G16","v":0},{"$f":"CALENDARIO!H16","v":0},{"$f":"CALENDARIO!I16","v":"2016-07-13"},{"$f":"CALENDARIO!J16","v":0},{"$f":"CALENDARIO!K16","v":0},{"$f":"CALENDARIO!L16","v":"2016-07-14"},{"$f":"CALENDARIO!M16","v":0},{"$f":"CALENDARIO!N16","v":0},{"$f":"CALENDARIO!O16","v":"2016-07-15"},{"$f":"CALENDARIO!P16","v":0},{"$f":"CALENDARIO!Q16","v":0},{"$f":"CALENDARIO!R16","v":"2016-07-16"},{"$f":"CALENDARIO!S16","v":0},{"$f":"CALENDARIO!T16","v":0},{"$f":"CALENDARIO!U16","v":"2016-07-17"}]
[null,null,{"$f":"CALENDARIO!C17","v":"Pranzo Camera di Commercio"},{"$f":"CALENDARIO!D17","v":0},{"$f":"CALENDARIO!E17","v":0},{"$f":"CALENDARIO!F17","v":"Mostra di antiquariato"},{"$f":"CALENDARIO!G17","v":0},{"$f":"CALENDARIO!H17","v":0},{"$f":"CALENDARIO!I17","v":""},{"$f":"CALENDARIO!J17","v":0},{"$f":"CALENDARIO!K17","v":0},{"$f":"CALENDARIO!L17","v":"Seminario comunità"},{"$f":"CALENDARIO!M17","v":0},{"$f":"CALENDARIO!N17","v":0},{"$f":"CALENDARIO!O17","v":"Consiglio comunale"},{"$f":"CALENDARIO!P17","v":0},{"$f":"CALENDARIO!Q17","v":0},{"$f":"CALENDARIO!R17","v":""},{"$f":"CALENDARIO!S17","v":0},{"$f":"CALENDARIO!T17","v":0},{"$f":"CALENDARIO!U17","v":""}]
[null,null,{"$f":"CALENDARIO!C18","v":""},{"$f":"CALENDARIO!D18","v":0},{"$f":"CALENDARIO!E18","v":0},{"$f":"CALENDARIO!F18","v":""},{"$f":"CALENDARIO!G18","v":0},{"$f":"CALENDARIO!H18","v":0},{"$f":"CALENDARIO!I18","v":""},{"$f":"CALENDARIO!J18","v":0},{"$f":"CALENDARIO!K18","v":0},{"$f":"CALENDARIO!L18","v":""},{"$f":"CALENDARIO!M18","v":0},{"$f":"CALENDARIO!N18","v":0},{"$f":"CALENDARIO!O18","v":""},{"$f":"CALENDARIO!P18","v":0},{"$f":"CALENDARIO!Q18","v":0},{"$f":"CALENDARIO!R18","v":""},{"$f":"CALENDARIO!S18","v":0},{"$f":"CALENDARIO!T18","v":0},{"$f":"CALENDARIO!U18","v":""}]
[null,null,{"$f":"CALENDARIO!C19","v":""},{"$f":"CALENDARIO!D19","v":0},{"$f":"CALENDARIO!E19","v":0},{"$f":"CALENDARIO!F19","v":""},{"$f":"CALENDARIO!G19","v":0},{"$f":"CALENDARIO!H19","v":0},{"$f":"CALENDARIO!I19","v":""},{"$f":"CALENDARIO!J19","v":0},{"$f":"CALENDARIO!K19","v":0},{"$f":"CALENDARIO!L19","v":""},{"$f":"CALENDARIO!M19","v":0},{"$f":"CALENDARIO!N19","v":0},{"$f":"CALENDARIO!O19","v":""},{"$f":"CALENDARIO!P19","v":0},{"$f":"CALENDARIO!Q19","v":0},{"$f":"CALENDARIO!R19","v":""},{"$f":"CALENDARIO!S19","v":0},{"$f":"CALENDARIO!T19","v":0},{"$f":"CALENDARIO!U19","v":""}]
[null,null,{"$f":"CALENDARIO!C20","v":""},{"$f":"CALENDARIO!D20","v":0},{"$f":"CALENDARIO!E20","v":0},{"$f":"CALENDARIO!F20","v":""},{"$f":"CALENDARIO!G20","v":0},{"$f":"CALENDARIO!H20","v":0},{"$f":"CALENDARIO!I20","v":""},{"$f":"CALENDARIO!J20","v":0},{"$f":"CALENDARIO!K20","v":0},{"$f":"CALENDARIO!L20","v":""},{"$f":"CALENDARIO!M20","v":0},{"$f":"CALENDARIO!N20","v":0},{"$f":"CALENDARIO!O20","v":""},{"$f":"CALENDARIO!P20","v":0},{"$f":"CALENDARIO!Q20","v":0},{"$f":"CALENDARIO!R20","v":""},{"$f":"CALENDARIO!S20","v":0},{"$f":"CALENDARIO!T20","v":0},{"$f":"CALENDARIO!U20","v":""}]
[null,null,{"$f":"CALENDARIO!C21","v":"2016-07-18"},{"$f":"CALENDARIO!D21","v":0},{"$f":"CALENDARIO!E21","v":0},{"$f":"CALENDARIO!F21","v":"2016-07-19"},{"$f":"CALENDARIO!G21","v":0},{"$f":"CALENDARIO!H21","v":0},{"$f":"CALENDARIO!I21","v":"2016-07-20"},{"$f":"CALENDARIO!J21","v":0},{"$f":"CALENDARIO!K21","v":0},{"$f":"CALENDARIO!L21","v":"2016-07-21"},{"$f":"CALENDARIO!M21","v":0},{"$f":"CALENDARIO!N21","v":0},{"$f":"CALENDARIO!O21","v":"2016-07-22"},{"$f":"CALENDARIO!P21","v":0},{"$f":"CALENDARIO!Q21","v":0},{"$f":"CALENDARIO!R21","v":"2016-07-23"},{"$f":"CALENDARIO!S21","v":0},{"$f":"CALENDARIO!T21","v":0},{"$f":"CALENDARIO!U21","v":"2016-07-24"}]
[null,null,{"$f":"CALENDARIO!C22","v":""},{"$f":"CALENDARIO!D22","v":0},{"$f":"CALENDARIO!E22","v":0},{"$f":"CALENDARIO!F22","v":"Seminario di pianificazione strategica"},{"$f":"CALENDARIO!G22","v":0},{"$f":"CALENDARIO!H22","v":0},{"$f":"CALENDARIO!I22","v":"Pulizia parco"},{"$f":"CALENDARIO!J22","v":0},{"$f":"CALENDARIO!K22","v":0},{"$f":"CALENDARIO!L22","v":""},{"$f":"CALENDARIO!M22","v":0},{"$f":"CALENDARIO!N22","v":0},{"$f":"CALENDARIO!O22","v":"Consiglio comunale"},{"$f":"CALENDARIO!P22","v":0},{"$f":"CALENDARIO!Q22","v":0},{"$f":"CALENDARIO!R22","v":""},{"$f":"CALENDARIO!S22","v":0},{"$f":"CALENDARIO!T22","v":0},{"$f":"CALENDARIO!U22","v":""}]
[null,null,{"$f":"CALENDARIO!C23","v":""},{"$f":"CALENDARIO!D23","v":0},{"$f":"CALENDARIO!E23","v":0},{"$f":"CALENDARIO!F23","v":""},{"$f":"CALENDARIO!G23","v":0},{"$f":"CALENDARIO!H23","v":0},{"$f":"CALENDARIO!I23","v":""},{"$f":"CALENDARIO!J23","v":0},{"$f":"CALENDARIO!K23","v":0},{"$f":"CALENDARIO!L23","v":""},{"$f":"CALENDARIO!M23","v":0},{"$f":"CALENDARIO!N23","v":0},{"$f":"CALENDARIO!O23","v":""},{"$f":"CALENDARIO!P23","v":0},{"$f":"CALENDARIO!Q23","v":0},{"$f":"CALENDARIO!R23","v":""},{"$f":"CALENDARIO!S23","v":0},{"$f":"CALENDARIO!T23","v":0},{"$f":"CALENDARIO!U23","v":""}]
[null,null,{"$f":"CALENDARIO!C24","v":""},{"$f":"CALENDARIO!D24","v":0},{"$f":"CALENDARIO!E24","v":0},{"$f":"CALENDARIO!F24","v":""},{"$f":"CALENDARIO!G24","v":0},{"$f":"CALENDARIO!H24","v":0},{"$f":"CALENDARIO!I24","v":""},{"$f":"CALENDARIO!J24","v":0},{"$f":"CALENDARIO!K24","v":0},{"$f":"CALENDARIO!L24","v":""},{"$f":"CALENDARIO!M24","v":0},{"$f":"CALENDARIO!N24","v":0},{"$f":"CALENDARIO!O24","v":""},{"$f":"CALENDARIO!P24","v":0},{"$f":"CALENDARIO!Q24","v":0},{"$f":"CALENDARIO!R24","v":""},{"$f":"CALENDARIO!S24","v":0},{"$f":"CALENDARIO!T24","v":0},{"$f":"CALENDARIO!U24","v":""}]
[null,null,{"$f":"CALENDARIO!C25","v":""},{"$f":"CALENDARIO!D25","v":0},{"$f":"CALENDARIO!E25","v":0},{"$f":"CALENDARIO!F25","v":""},{"$f":"CALENDARIO!G25","v":0},{"$f":"CALENDARIO!H25","v":0},{"$f":"CALENDARIO!I25","v":""},{"$f":"CALENDARIO!J25","v":0},{"$f":"CALENDARIO!K25","v":0},{"$f":"CALENDARIO!L25","v":""},{"$f":"CALENDARIO!M25","v":0},{"$f":"CALENDARIO!N25","v":0},{"$f":"CALENDARIO!O25","v":""},{"$f":"CALENDARIO!P25","v":0},{"$f":"CALENDARIO!Q25","v":0},{"$f":"CALENDARIO!R25","v":""},{"$f":"CALENDARIO!S25","v":0},{"$f":"CALENDARIO!T25","v":0},{"$f":"CALENDARIO!U25","v":""}]
[null,null,{"$f":"CALENDARIO!C26","v":"2016-07-25"},{"$f":"CALENDARIO!D26","v":0},{"$f":"CALENDARIO!E26","v":0},{"$f":"CALENDARIO!F26","v":"2016-07-26"},{"$f":"CALENDARIO!G26","v":0},{"$f":"CALENDARIO!H26","v":0},{"$f":"CALENDARIO!I26","v":"2016-07-27"},{"$f":"CALENDARIO!J26","v":0},{"$f":"CALENDARIO!K26","v":0},{"$f":"CALENDARIO!L26","v":"2016-07-28"},{"$f":"CALENDARIO!M26","v":0},{"$f":"CALENDARIO!N26","v":0},{"$f":"CALENDARIO!O26","v":"2016-07-29"},{"$f":"CALENDARIO!P26","v":0},{"$f":"CALENDARIO!Q26","v":0},{"$f":"CALENDARIO!R26","v":"2016-07-30"},{"$f":"CALENDARIO!S26","v":0},{"$f":"CALENDARIO!T26","v":0},{"$f":"CALENDARIO!U26","v":"2016-07-31"}]
[null,null,{"$f":"CALENDARIO!C27","v":""},{"$f":"CALENDARIO!D27","v":0},{"$f":"CALENDARIO!E27","v":0},{"$f":"CALENDARIO!F27","v":"Passeggiata in centro"},{"$f":"CALENDARIO!G27","v":0},{"$f":"CALENDARIO!H27","v":0},{"$f":"CALENDARIO!I27","v":""},{"$f":"CALENDARIO!J27","v":0},{"$f":"CALENDARIO!K27","v":0},{"$f":"CALENDARIO!L27","v":""},{"$f":"CALENDARIO!M27","v":0},{"$f":"CALENDARIO!N27","v":0},{"$f":"CALENDARIO!O27","v":"Consiglio comunale"},{"$f":"CALENDARIO!P27","v":0},{"$f":"CALENDARIO!Q27","v":0},{"$f":"CALENDARIO!R27","v":""},{"$f":"CALENDARIO!S27","v":0},{"$f":"CALENDARIO!T27","v":0},{"$f":"CALENDARIO!U27","v":""}]
[null,null,{"$f":"CALENDARIO!C28","v":""},{"$f":"CALENDARIO!D28","v":0},{"$f":"CALENDARIO!E28","v":0},{"$f":"CALENDARIO!F28","v":"Giro dei bar"},{"$f":"CALENDARIO!G28","v":0},{"$f":"CALENDARIO!H28","v":0},{"$f":"CALENDARIO!I28","v":""},{"$f":"CALENDARIO!J28","v":0},{"$f":"CALENDARIO!K28","v":0},{"$f":"CALENDARIO!L28","v":""},{"$f":"CALENDARIO!M28","v":0},{"$f":"CALENDARIO!N28","v":0},{"$f":"CALENDARIO!O28","v":""},{"$f":"CALENDARIO!P28","v":0},{"$f":"CALENDARIO!Q28","v":0},{"$f":"CALENDARIO!R28","v":""},{"$f":"CALENDARIO!S28","v":0},{"$f":"CALENDARIO!T28","v":0},{"$f":"CALENDARIO!U28","v":""}]
[null,null,{"$f":"CALENDARIO!C29","v":""},{"$f":"CALENDARIO!D29","v":0},{"$f":"CALENDARIO!E29","v":0},{"$f":"CALENDARIO!F29","v":""},{"$f":"CALENDARIO!G29","v":0},{"$f":"CALENDARIO!H29","v":0},{"$f":"CALENDARIO!I29","v":""},{"$f":"CALENDARIO!J29","v":0},{"$f":"CALENDARIO!K29","v":0},{"$f":"CALENDARIO!L29","v":""},{"$f":"CALENDARIO!M29","v":0},{"$f":"CALENDARIO!N29","v":0},{"$f":"CALENDARIO!O29","v":""},{"$f":"CALENDARIO!P29","v":0},{"$f":"CALENDARIO!Q29","v":0},{"$f":"CALENDARIO!R29","v":""},{"$f":"CALENDARIO!S29","v":0},{"$f":"CALENDARIO!T29","v":0},{"$f":"CALENDARIO!U29","v":""}]
[null,null,{"$f":"CALENDARIO!C30","v":""},{"$f":"CALENDARIO!D30","v":0},{"$f":"CALENDARIO!E30","v":0},{"$f":"CALENDARIO!F30","v":""},{"$f":"CALENDARIO!G30","v":0},{"$f":"CALENDARIO!H30","v":0},{"$f":"CALENDARIO!I30","v":""},{"$f":"CALENDARIO!J30","v":0},{"$f":"CALENDARIO!K30","v":0},{"$f":"CALENDARIO!L30","v":""},{"$f":"CALENDARIO!M30","v":0},{"$f":"CALENDARIO!N30","v":0},{"$f":"CALENDARIO!O30","v":""},{"$f":"CALENDARIO!P30","v":0},{"$f":"CALENDARIO!Q30","v":0},{"$f":"CALENDARIO!R30","v":""},{"$f":"CALENDARIO!S30","v":0},{"$f":"CALENDARIO!T30","v":0},{"$f":"CALENDARIO!U30","v":""}]
[null,null,{"$f":"CALENDARIO!C31","v":"2016-08-01"},{"$f":"CALENDARIO!D31","v":0},{"$f":"CALENDARIO!E31","v":0},{"$f":"CALENDARIO!F31","v":"2016-08-02"},null,null,{"$f":"CALENDARIO!I31","v":"NOTE:"}]
[null,null,{"$f":"CALENDARIO!C32","v":""},{"$f":"CALENDARIO!D32","v":0},{"$f":"CALENDARIO!E32","v":0},{"$f":"CALENDARIO!F32","v":""}]
[null,null,{"$f":"CALENDARIO!C33","v":""},{"$f":"CALENDARIO!D33","v":0},{"$f":"CALENDARIO!E33","v":0},{"$f":"CALENDARIO!F33","v":""}]
[null,null,{"$f":"CALENDARIO!C34","v":""},{"$f":"CALENDARIO!D34","v":0},{"$f":"CALENDARIO!E34","v":0},{"$f":"CALENDARIO!F34","v":""}]
[null,null,{"$f":"CALENDARIO!C35","v":""},{"$f":"CALENDARIO!D35","v":0},{"$f":"CALENDARIO!E35","v":0},{"$f":"CALENDARIO!F35","v":""}]

{"sheet":"AMMINISTRATORE","index":3,"n_rows":14,"n_cols":3,"rows_kept":14,"hidden":true}
[]
[null,"MESE","NUMERO"]
[null,"GENNAIO",1]
[null,"FEBBRAIO",2]
[null,"MARZO",3]
[null,"APRILE",4]
[null,"MAGGIO",5]
[null,"GIUGNO",6]
[null,"LUGLIO",7]
[null,"AGOSTO",8]
[null,"SETTEMBRE",9]
[null,"OTTOBRE",10]
[null,"NOVEMBRE",11]
[null,"DICEMBRE",12]